bitfinex-derivatives/quotes_ETHF0:USTF0_20250624
["timestamp","ask_amount","ask_price","bid_price","bid_amount"]
[1750778086545,0.82164,2432.9,2432.6,4.02951]
[1750778086745,0.82162,2433.0,2432.7,0.8217]
[1750778086947,0.82168,2432.8,2432.6,3.2078]
[1750778087147,0.82168,2432.8,2432.1,2.7616]
[1750778087148,4.02949,2432.8,2432.2,4.6434]
[1750778087446,0.82168,2432.8,2432.5,0.82176]
[1750778087847,0.82166,2432.9,2432.6,0.82173]
[1750778088045,0.82166,2432.9,2432.3,2.05456]
[1750778088249,3.2078,2433.1,2432.5,3.2078]
[1750778088450,0.82161,2433.0,2432.6,1.4356]
[1750778088649,0.82161,2433.0,2432.7,0.82167]
[1750778088844,0.82161,2433.0,2432.6,1.4356]
[1750778088845,0.82161,2433.0,2432.8,0.82166]
[1750778089345,0.82161,2433.0,2432.6,1.4356]
[1750778089544,0.82161,2433.0,2432.7,0.82167]
[1750778090050,3.2078,2433.1,2432.6,1.4356]
[1750778090243,7.381,2433.2,2432.7,0.8217]
[1750778090450,0.82163,2432.9,2432.6,1.4356]
[1750778090650,1.4117,2433.2,2432.6,1.4356]
[1750778090851,8.20255,2433.2,2432.9,0.8216]
[1750778091048,4.02931,2433.3,2432.7,2.05425]
[1750778091251,3.2078,2433.3,2432.8,6.60764]
[1750778091550,10.5888,2433.3,2432.8,6.60764]
[1750778091751,0.82156,2433.2,2432.9,0.82163]
[1750778091951,0.82155,2433.2,2433.0,0.82159]
[1750778092146,0.82157,2433.1,2432.9,2.16731]
[1750778092353,7.381,2433.3,2433.0,0.8216]
[1750778092548,0.82155,2433.2,2432.9,2.16731]
[1750778092749,0.82156,2433.2,2432.9,1.3457]
[1750778092947,0.82158,2433.1,2432.7,1.3374]
[1750778093143,12.64257,2433.3,2432.7,1.3374]
[1750778093144,0.82156,2433.2,2432.9,0.82163]
[1750778093348,0.82159,2433.1,2432.9,0.82163]
[1750778093954,0.82156,2433.2,2432.9,0.82163]
[1750778094254,0.82154,2433.2,2432.9,0.8216]
[1750778094449,0.82154,2433.2,2433.0,0.8216]
[1750778095655,10.5888,2433.3,2432.8,1.3405]
[1750778095656,0.82156,2433.1,2432.9,0.8216]
[1750778096358,0.82155,2433.2,2433.0,0.82159]
[1750778096654,0.82156,2433.1,2433.0,0.82159]
[1750778096953,0.82154,2433.2,2433.0,0.82159]
[1750778097153,0.82154,2433.2,2433.1,0.82155]
[1750778098456,0.82155,2433.1,2433.0,0.82155]
[1750778099056,0.82156,2433.1,2433.0,0.82156]
[1750778099552,0.82156,2433.1,2432.8,3.39462]
[1750778099553,0.82159,2433.0,2432.9,0.82159]
[1750778099756,0.82159,2433.0,2432.6,2.05429]
[1750778099959,0.82159,2433.0,2432.9,0.82161]
[1750778100356,2.0538,2433.2,2432.6,1.3153]
[1750778100357,2.05379,2433.2,2432.6,1.3153]
[1750778100557,10.5888,2433.3,2433.1,0.82154]
[1750778100856,0.82155,2433.1,2433.0,0.82156]
[1750778101055,1.2657,2434.1,2433.2,0.82151]
[1750778101254,1.2657,2434.1,2433.7,3.2078]
[1750778101255,0.82131,2433.8,2433.7,3.2078]
[1750778101451,3.2078,2433.9,2433.0,3.2078]
[1750778101655,8.86044646,2433.6,2433.1,0.82154]
[1750778101859,2.05334,2433.8,2433.3,3.2078]
[1750778102053,4.79924,2434.0,2433.3,3.2078]
[1750778102254,0.82139,2433.6,2433.3,3.2078]
[1750778102554,1.3407,2434.0,2433.8,0.82129]
[1750778102751,1.2657,2434.1,2433.7,3.2078]
[1750778102950,1.2657,2434.1,2434.0,3.2078]
[1750778103156,2.08691,2434.1,2434.0,3.2078]
[1750778103452,2.08691,2434.1,2433.8,1.431]
[1750778103453,1.2657,2434.1,2433.7,3.2078]
[1750778103755,2.08693,2434.1,2433.7,4.02914]
[1750778103953,2.08693,2434.1,2434.0,3.2078]
[1750778104456,0.82128,2433.9,2433.8,1.431]
[1750778104657,0.82127,2434.0,2433.8,1.431]
[1750778104954,0.82128,2433.9,2433.8,1.431]
[1750778105258,0.82131,2433.8,2433.7,3.2078]
[1750778105660,1.2657,2434.1,2433.7,3.2078]
[1750778106157,1.2657,2434.1,2433.7,4.6263]
[1750778106357,1.2657,2434.1,2433.7,5.44763]
[1750778106559,0.82127,2434.0,2433.8,1.4185]
[1750778106952,0.82128,2433.9,2433.8,1.4185]
[1750778107153,0.82131,2433.8,2433.7,3.2078]
[1750778111059,0.82141,2433.5,2433.4,0.6918]
[1750778111260,2.05329,2433.8,2433.3,4.02928]
[1750778111261,0.82144,2433.4,2433.3,4.02928]
[1750778111558,0.82144,2433.4,2433.3,3.2078]
[1750778111757,5.79013363,2433.4,2432.7,3.25712599]
[1750778111962,0.82163,2432.9,2432.6,5.26209]
[1750778112151,0.8216,2433.0,2432.9,0.82159]
[1750778112352,0.82162,2432.9,2432.8,0.82162]
[1750778112862,0.82162,2432.9,2432.7,2.15356]
[1750778113051,0.82162,2432.9,2432.8,0.82165]
[1750778113254,2.0538,2433.2,2432.8,2.15355]
[1750778113664,0.82161,2433.0,2432.8,2.15355]
[1750778114059,1.3805,2433.3,2433.0,0.82157]
[1750778114365,0.82157,2433.1,2432.9,3.2078]
[1750778114563,0.82154,2433.2,2433.0,2.26308]
[1750778114756,1.3805,2433.3,2433.0,1.4415]
[1750778114757,0.82155,2433.1,2433.0,1.4415]
[1750778115664,0.82158,2433.0,2432.9,3.2078]
[1750778117365,0.82165,2432.8,2432.7,3.25712599]
[1750778117564,0.82168,2432.7,2432.6,1.4415]
[1750778117765,0.82168,2432.7,2432.6,2.26319]
[1750778117964,0.82165,2432.8,2432.7,0.82166]
[1750778118259,5.26168,2433.1,2432.7,0.82166]
[1750778118260,5.26168,2433.1,2432.7,0.82165]
[1750778118465,0.82164,2432.9,2432.5,8.51929599]
[1750778118664,6.59928,2433.1,2432.8,0.82165]
[1750778118866,6.59928,2433.1,2432.6,1.3531]
[1750778118867,0.82164,2432.9,2432.7,0.82167]
[1750778119175,0.82165,2432.8,2432.7,0.82167]
[1750778119370,0.82168,2432.7,2432.6,2.1748]
[1750778119668,6.59929,2433.1,2432.5,3.2078]
[1750778119669,0.82171,2432.6,2432.5,3.2078]
[1750778120164,0.82171,2432.6,2432.5,4.6131]
[1750778122968,0.82171,2432.6,2432.5,5.43485]
[1750778123173,0.82171,2432.6,2432.5,4.6131]
[1750778124375,0.82171,2432.6,2432.5,3.2078]
[1750778124666,0.82171,2432.6,2432.5,4.6348]
[1750778125072,0.82171,2432.6,2432.5,3.2078]
[1750778126973,2.05396,2433.0,2432.5,3.2078]
[1750778127275,0.82171,2432.6,2432.5,4.5562]
[1750778128077,0.82181,2432.4,2432.2,3.2078]
[1750778128279,2.05429,2432.6,2432.2,4.5562]
[1750778128575,0.82182,2432.3,2432.2,4.5562]
[1750778128782,0.82182,2432.3,2432.2,3.2078]
[1750778129478,0.82193,2432.0,2431.8,15.17232599]
[1750778129677,0.82193,2432.0,2431.8,12.73717]
[1750778129881,2.05458,2432.3,2431.8,12.73717]
[1750778129882,0.82195,2431.9,2431.8,4.5562]
[1750778130179,0.82195,2431.9,2431.8,3.2078]
[1750778130881,2.08855,2431.9,2431.8,3.2078]
[1750778131076,1.2666,2431.9,2431.8,3.2078]
[1750778131476,1.2666,2431.9,2431.8,5.41408]
[1750778132883,2.08855,2431.9,2431.8,3.2078]
[1750778133778,2.08855,2431.9,2431.2,28.58742]
[1750778133779,0.82207,2431.6,2431.2,3.2078]
[1750778133976,3.2078,2431.7,2431.6,0.82205]
[1750778134287,1.2666,2431.9,2431.8,0.82198]
[1750778135080,1.2666,2431.9,2431.8,2.23808]
[1750778136181,8.0002,2432.5,2432.4,0.82178]
[1750778136577,0.82179,2432.4,2432.3,0.8218]
[1750778136881,8.0002,2432.5,2432.4,0.82178]
[1750778137086,3.2078,2432.7,2432.3,2.05453]
[1750778137291,3.2078,2432.7,2432.6,0.82171]
[1750778137583,3.2078,2432.7,2432.4,1.4318]
[1750778137584,8.0145,2432.8,2432.7,0.82168]
[1750778137770,7.336,2432.8,2432.7,0.82168]
[1750778138176,0.82161,2432.9,2432.7,0.82168]
[1750778138373,3.2078,2433.0,2432.9,0.82161]
[1750778138780,1.50003,2433.2,2433.0,0.82156]
[1750778138977,0.82158,2433.1,2432.9,0.8216]
[1750778139481,0.82158,2433.0,2432.9,0.8216]
[1750778139887,0.82157,2433.1,2433.0,0.82158]
[1750778140278,0.82161,2433.0,2432.9,0.82161]
[1750778140585,0.82161,2432.9,2432.8,0.82163]
[1750778140887,0.82163,2432.9,2432.8,0.82163]
[1750778141289,0.82161,2433.0,2432.9,0.8216]
[1750778141586,0.82163,2432.9,2432.8,0.82163]
[1750778141784,0.8216,2433.0,2432.9,0.8216]
[1750778143386,0.82164,2432.9,2432.8,0.82163]
[1750778143791,2.1795,2433.0,2432.9,0.82161]
[1750778144288,2.05413,2432.8,2432.3,0.6511]
[1750778144587,2.05413,2432.8,2432.4,0.82175]
[1750778144588,0.82176,2432.5,2432.4,0.82175]
[1750778144784,7.10193363,2432.7,2432.1,2.05469]
[1750778144785,0.82182,2432.4,2432.1,3.25712599]
[1750778144984,0.82185,2432.2,2432.1,0.82187]
[1750778145584,2.19834,2432.3,2432.2,0.82185]
[1750778146489,0.82185,2432.2,2432.1,0.82187]
[1750778146785,3.43108,2432.3,2432.0,0.82191]
[1750778146993,0.8219,2432.1,2431.9,0.82194]
[1750778147487,7.335,2432.0,2431.6,3.25712599]
[1750778147685,0.82205,2431.6,2431.5,0.82207]
[1750778148000,5.79013363,2431.7,2431.3,0.82213]
[1750778148181,0.82212,2431.4,2431.3,0.82213]
[1750778148382,0.82211,2431.5,2431.4,0.82212]
[1750778148692,0.82217,2431.3,2431.2,0.82217]
[1750778148982,10.1365,2431.6,2431.0,9.89003599]
[1750778149199,10.95857,2431.6,2431.5,0.82209]
[1750778149383,1.3646,2431.6,2431.5,0.82209]
[1750778149990,0.82209,2431.5,2431.3,3.2078]
[1750778150189,0.82212,2431.4,2431.3,3.2078]
[1750778150489,5.79013363,2431.6,2431.3,3.2078]
[1750778150687,0.82211,2431.5,2431.4,0.8221]
[1750778150994,6.61221363,2431.6,2431.5,0.82209]
[1750778151489,1.3646,2431.7,2431.6,0.82205]
[1750778151888,2.18664,2431.7,2431.6,0.82205]
[1750778152087,1.3646,2431.7,2431.6,0.82205]
[1750778152283,2.18662,2431.7,2431.6,0.82205]
[1750778152492,1.3646,2431.7,2431.6,0.82205]
[1750778152893,1.3646,2431.7,2431.5,0.82206]
[1750778153087,0.8221,2431.5,2431.4,0.82212]
[1750778153288,6.61223363,2431.5,2431.4,0.82212]
[1750778153790,5.79013363,2431.5,2431.4,0.82212]
[1750778154194,0.82213,2431.4,2431.3,0.82213]
[1750778154492,6.61224363,2431.5,2431.4,0.82212]
[1750778154693,0.82214,2431.4,2431.3,0.82213]
[1750778155082,6.61224363,2431.5,2431.4,0.82212]
[1750778155288,14.51913363,2431.5,2431.4,0.82212]
[1750778155890,15.34122363,2431.5,2431.4,0.82212]
[1750778156291,0.82214,2431.4,2431.3,0.82213]
[1750778156690,0.82218,2431.3,2431.2,0.82216]
[1750778156894,0.8222,2431.2,2431.1,0.8222]
[1750778157484,5.79013363,2431.2,2430.8,2.05582]
[1750778157688,6.61236363,2431.2,2431.1,0.82222]
[1750778157891,7.20353363,2431.2,2431.1,0.82222]
[1750778158094,8.02572363,2431.2,2431.1,0.82222]
[1750778158292,0.82217,2431.3,2431.2,0.82215]
[1750778158496,3.2078,2431.4,2431.3,0.82215]
[1750778158691,10.5458,2431.4,2431.3,0.82215]
[1750778158890,0.8221,2431.5,2431.4,0.82209]
[1750778159101,8.1601,2431.5,2431.4,0.82209]
[1750778159593,0.82218,2431.3,2431.2,0.82215]
[1750778160598,4.02991,2431.5,2431.4,0.82212]
[1750778160800,10.5458,2431.5,2430.9,2.05567]
[1750778161000,3.2078,2431.2,2430.8,2.05581]
[1750778161197,7.338,2431.1,2430.8,2.05581]
[1750778161398,8.16022,2431.1,2431.0,0.82226]
[1750778161592,7.338,2431.1,2430.9,0.82227]
[1750778161899,7.338,2431.1,2431.0,0.82226]
[1750778162094,7.338,2431.3,2431.2,0.82219]
[1750778162803,8.16015,2431.3,2431.2,0.82219]
[1750778162999,7.338,2431.3,2431.2,0.82219]
[1750778163395,8.16015,2431.3,2431.2,0.82219]
[1750778163595,3.2078,2431.5,2431.4,0.82212]
[1750778163791,0.82219,2431.3,2431.2,0.82217]
[1750778163991,2.05532,2431.4,2431.0,3.2078]
[1750778164200,5.79013363,2431.3,2430.7,6.66949]
[1750778164395,0.82218,2431.3,2431.2,0.8859215]
[1750778165598,0.82219,2431.2,2431.1,0.8222]
[1750778165801,0.82222,2431.1,2431.0,5.43583]
[1750778166003,0.82226,2431.0,2430.9,0.82226]
[1750778166299,0.82226,2431.0,2430.9,0.82227]
[1750778166300,0.82228,2431.0,2430.9,0.82227]
[1750778166992,0.82229,2430.9,2430.8,2.2515]
[1750778167997,0.82229,2430.9,2430.8,0.8223]
[1750778168307,2.05556,2431.1,2431.0,0.82224]
[1750778168308,0.82225,2431.1,2431.0,0.82224]
[1750778168901,0.82228,2431.0,2430.9,0.82227]
[1750778169703,0.82236,2430.7,2430.6,4.03015]
[1750778169898,0.82246,2430.4,2430.3,1.52197]
[1750778170103,0.82246,2430.4,2430.0,2.05649]
[1750778170406,5.79013363,2430.5,2430.1,3.4289]
[1750778170615,1.47622,2430.6,2430.5,0.82242]
[1750778170821,7.31,2430.7,2430.6,0.82239]
[1750778171009,3.2078,2430.9,2430.4,2.05615]
[1750778171210,0.82233,2430.8,2430.7,0.82233]
[1750778171410,0.82237,2430.7,2430.6,0.82238]
[1750778171710,0.82237,2430.7,2430.6,2.19488]
[1750778171913,0.82237,2430.7,2430.6,2.19489]
[1750778172717,8.99793363,2430.9,2430.6,1.3725]
[1750778172906,0.82236,2430.8,2430.7,0.82234]
[1750778174010,9.82024363,2430.9,2430.8,0.82232]
[1750778176425,7.311,2431.5,2431.4,0.82212]
[1750778176714,47.68512722,2431.8,2431.5,0.82205]
[1750778176715,1.3493,2431.7,2431.5,0.82205]
[1750778176916,7.311,2432.0,2431.6,3.2078]
[1750778177117,8.13294,2432.0,2431.9,0.82195]
[1750778177317,2.17115,2432.2,2432.1,0.82188]
[1750778177717,3.2078,2432.2,2432.1,0.82188]
[1750778178111,0.82185,2432.2,2432.1,0.82188]
[1750778178312,0.82192,2432.0,2431.9,2.81783]
[1750778178722,0.8219,2432.1,2432.0,0.8219]
[1750778179136,0.82196,2431.9,2431.8,0.82197]
[1750778179314,5.79013363,2431.9,2431.8,0.82197]
[1750778180225,5.79013363,2432.1,2431.7,0.82202]
[1750778180415,5.79013363,2432.1,2432.0,0.82192]
[1750778180618,6.61201363,2432.1,2432.0,0.82192]
[1750778181020,5.79013363,2432.1,2432.0,0.82192]
[1750778181219,6.61201363,2432.1,2432.0,0.82192]
[1750778181524,5.79013363,2432.1,2432.0,0.82192]
[1750778182413,6.61201363,2432.1,2432.0,0.82192]
[1750778183125,5.79013363,2432.1,2432.0,0.82192]
[1750778183716,0.6606,2432.2,2432.1,0.82188]
[1750778183923,3.2078,2432.5,2432.4,0.82178]
[1750778184122,0.8218,2432.4,2432.3,0.82178]
[1750778184326,6.61193363,2432.4,2432.3,0.82178]
[1750778184525,5.79013363,2432.4,2432.0,1.4003]
[1750778184727,4.02966,2432.2,2432.1,0.82186]
[1750778185027,0.82186,2432.2,2432.1,0.82186]
[1750778185722,2.26404,2432.3,2432.2,0.82185]
[1750778185929,5.79013363,2432.3,2432.2,0.82185]
[1750778186126,7.309,2432.3,2432.2,0.82185]
[1750778187432,8.13082,2432.3,2432.2,0.82185]
[1750778187734,0.8219,2432.1,2432.0,0.82189]
[1750778188120,0.82208,2431.6,2431.5,0.82207]
[1750778188325,0.82213,2431.4,2431.1,2.05556]
[1750778188518,0.82213,2431.4,2431.3,0.82212]
[1750778189530,0.82211,2431.5,2431.4,0.8221]
[1750778190332,0.82218,2431.3,2431.2,0.82217]
[1750778190531,0.82214,2431.4,2431.3,0.82213]
[1750778191134,0.82217,2431.3,2431.2,0.82217]
[1750778191934,0.82215,2431.4,2431.3,0.82214]
[1750778192333,2.86351,2431.5,2431.3,0.82214]
[1750778192531,1.53121,2431.5,2431.3,0.82214]
[1750778192732,1.53121,2431.5,2431.3,0.82213]
[1750778192733,0.82213,2431.4,2431.3,0.82213]
[1750778192930,1.5312,2431.5,2431.4,0.82212]
[1750778193234,1.5312,2431.5,2431.3,0.82212]
[1750778193435,1.5312,2431.5,2431.4,0.82212]
[1750778194431,5.79013363,2431.6,2431.5,0.82209]
[1750778194432,0.82207,2431.6,2431.5,0.82209]
[1750778194933,0.82204,2431.7,2431.6,0.82204]
[1750778195134,0.82206,2431.6,2431.5,0.82206]
[1750778195535,0.82204,2431.7,2431.6,0.82203]
[1750778195730,0.82207,2431.6,2431.5,0.82205]
[1750778198137,0.82205,2431.7,2431.6,0.82202]
[1750778198735,3.3315,2431.8,2431.7,0.82202]
[1750778198932,10.6135,2431.8,2431.7,0.82202]
[1750778199137,0.82202,2431.7,2431.6,2.13942]
[1750778199336,0.82209,2431.5,2431.4,0.8221]
[1750778199531,0.82208,2431.6,2431.5,0.82208]
[1750778200335,0.82205,2431.7,2431.6,0.82203]
[1750778200736,0.1237,2431.8,2431.7,0.82202]
[1750778201033,3.2078,2432.1,2432.0,0.82192]
[1750778201234,4.02968,2432.1,2432.0,0.82192]
[1750778201737,0.82194,2432.0,2431.9,0.82192]
[1750778201939,0.82195,2431.9,2431.8,1.47457]
[1750778202240,0.822,2431.8,2431.7,0.822]
[1750778202442,0.82202,2431.7,2431.6,5.47334]
[1750778202637,0.82202,2431.7,2431.6,4.02984]
[1750778203342,0.82211,2431.5,2431.4,0.8221]
[1750778203739,0.82211,2431.5,2431.4,0.82212]
[1750778204140,0.82212,2431.4,2431.3,2.92143]
[1750778204342,0.82211,2431.5,2431.4,0.82212]
[1750778204541,0.82212,2431.4,2431.3,1.52623]
[1750778205244,0.0912,2431.6,2431.5,0.82209]
[1750778205543,0.91325,2431.6,2431.5,0.82209]
[1750778205944,0.91325,2431.6,2431.5,2.12789]
[1750778206241,0.91325,2431.6,2431.5,1.3058]
[1750778206544,0.82209,2431.5,2431.4,4.02992]
[1750778207444,0.0912,2431.6,2431.5,0.82209]
[1750778207445,0.91327,2431.6,2431.5,0.82209]
[1750778207647,0.0912,2431.6,2431.5,2.12789]
[1750778207842,0.85452,2431.7,2431.6,0.82205]
[1750778208244,0.82202,2431.7,2431.6,0.82205]
[1750778209049,0.82205,2431.6,2431.5,2.12786]
[1750778209346,0.82204,2431.7,2431.6,0.82203]
[1750778209546,0.82204,2431.7,2431.6,2.26843]
[1750778211545,0.1687,2431.9,2431.8,0.82198]
[1750778211752,0.2013,2431.9,2431.8,0.82198]
[1750778211949,0.2013,2431.9,2431.6,4.70352599]
[1750778212249,1.02328,2431.9,2431.8,0.82198]
[1750778212751,0.2013,2431.9,2431.8,0.82198]
[1750778212946,0.2013,2431.9,2431.8,4.02978]
[1750778213644,7.282,2432.3,2432.2,0.82185]
[1750778214050,0.82182,2432.3,2432.2,0.82185]
[1750778215250,2.75532,2432.6,2432.1,1.4206]
[1750778215454,0.8218,2432.4,2432.3,0.82181]
[1750778215851,0.82185,2432.2,2432.1,2.24247]
[1750778216043,0.82185,2432.3,2432.2,0.82184]
[1750778216354,0.82185,2432.2,2432.1,1.4206]
[1750778216653,0.82198,2431.8,2431.7,3.27735393]
[1750778216853,0.82198,2431.8,2431.7,0.822]
[1750778217255,0.82198,2431.9,2431.8,0.82198]
[1750778217555,0.82193,2432.0,2431.9,0.82195]
[1750778218857,2.15751,2432.1,2432.0,0.82192]
[1750778219062,2.15749,2432.1,2432.0,0.82192]
[1750778219258,0.82187,2432.2,2432.1,0.82187]
[1750778219551,0.82183,2432.3,2432.2,0.82183]
[1750778219757,0.82188,2432.2,2432.1,0.82187]
[1750778220355,0.82188,2432.2,2432.1,2.17287]
[1750778220548,0.82188,2432.2,2432.1,1.351]
[1750778220744,0.82188,2432.2,2432.1,2.17288]
[1750778220949,0.82188,2432.1,2432.0,1.50909]
[1750778221646,0.82188,2432.1,2432.0,2.82739]
[1750778221844,0.82187,2432.2,2432.1,0.82187]
[1750778222050,0.82187,2432.2,2432.0,2.0055]
[1750778222051,0.82183,2432.3,2432.2,0.82182]
[1750778222653,0.82188,2432.2,2432.1,0.82186]
[1750778222859,0.82188,2432.2,2432.1,2.14016]
[1750778224752,0.82188,2432.1,2432.0,0.6872]
[1750778224952,0.82188,2432.1,2431.8,3.27735393]
[1750778224953,0.82198,2431.9,2431.8,0.82198]
[1750778225153,0.82198,2431.8,2431.7,2.22459]
[1750778226358,0.82198,2431.8,2431.7,0.82199]
[1750778226658,0.82205,2431.7,2431.6,0.82203]
[1750778226848,0.82205,2431.6,2431.5,3.27735393]
[1750778227050,0.82209,2431.5,2431.4,4.02992]
[1750778227252,0.7209,2431.9,2431.4,3.2078]
[1750778227457,0.82205,2431.6,2431.5,2.16217]
[1750778227757,0.82205,2431.6,2431.4,3.2078]
[1750778227758,0.82209,2431.5,2431.4,3.2078]
[1750778227953,0.82209,2431.5,2431.4,4.02992]
[1750778228154,0.82204,2431.7,2431.6,0.82204]
[1750778228460,0.82206,2431.6,2431.5,0.82207]
[1750778228755,0.82209,2431.5,2431.4,4.02989]
[1750778229058,0.82204,2431.7,2431.6,0.82204]
[1750778230062,0.82206,2431.6,2431.5,0.82206]
[1750778230462,0.82205,2431.7,2431.6,0.82205]
[1750778230657,0.82206,2431.6,2431.5,0.82206]
[1750778231461,0.82212,2431.4,2431.3,0.82213]
[1750778232066,0.82209,2431.6,2431.5,0.82207]
[1750778232568,0.8221,2431.5,2431.4,0.82209]
[1750778233068,0.82213,2431.4,2431.3,0.82213]
[1750778233664,0.82211,2431.5,2431.4,0.82212]
[1750778234059,4.02981,2431.8,2431.7,0.82202]
[1750778234559,0.82203,2431.7,2431.6,0.82203]
[1750778234966,0.82203,2431.7,2431.3,6.80741543]
[1750778234967,4.02981,2431.8,2431.7,0.82202]
[1750778235167,0.82203,2431.7,2431.6,0.82202]
[1750778236470,4.02981,2431.8,2431.7,0.82202]
[1750778236770,3.2078,2431.8,2431.7,0.82202]
[1750778236964,11.27968,2432.2,2431.7,5.26284]
[1750778237168,4.02965,2432.2,2431.8,4.87357]
[1750778237463,3.45818,2432.6,2431.8,2.8186]
[1750778237464,0.8219,2432.1,2431.8,2.8186]
[1750778237668,0.8219,2432.1,2432.0,0.8219]
[1750778238271,7.84460363,2432.4,2431.8,2.8186]
[1750778238272,0.82186,2432.2,2432.1,0.82186]
[1750778238875,15.70813363,2433.4,2432.5,2.05436]
[1750778239076,2.33821355,2433.3,2432.6,4.6341]
[1750778239291,0.82156,2433.1,2432.9,0.82159]
[1750778239471,0.82158,2433.0,2432.8,0.82163]
[1750778239775,2.18024,2433.2,2433.0,0.82158]
[1750778239972,2.18024,2433.2,2432.6,9.9587307]
[1750778239973,0.82156,2433.1,2432.9,0.82159]
[1750778240571,0.82156,2433.1,2432.6,4.6341]
[1750778240572,5.79013363,2433.1,2432.6,4.6341]
[1750778241167,0.82174,2432.6,2432.2,4.6966607]
[1750778241367,5.79013363,2432.8,2432.6,0.8217]
[1750778241570,0.82163,2432.9,2432.7,0.82168]
[1750778241780,0.82163,2432.9,2432.8,0.82165]
[1750778241971,8.07163,2432.9,2432.8,0.82165]
[1750778242476,7.25,2432.9,2432.8,0.82165]
[1750778242671,8.07061,2433.0,2432.9,0.82161]
[1750778242870,0.82161,2432.9,2432.8,0.82162]
[1750778243473,0.82165,2432.8,2432.7,0.82166]
[1750778243677,0.82164,2432.9,2432.8,0.82164]
[1750778243976,0.82166,2432.8,2432.7,0.82166]
[1750778244378,0.82169,2432.7,2432.3,3.2078]
[1750778244579,2.19949,2432.7,2432.6,0.82171]
[1750778244872,0.82169,2432.7,2432.6,0.82171]
[1750778245078,3.2078,2433.2,2432.6,3.2078]
[1750778245266,0.82161,2432.9,2432.8,0.82163]
[1750778246574,0.6752,2433.1,2432.6,3.2078]
[1750778246780,0.82161,2433.0,2432.9,0.8216]
[1750778247878,4.02941,2433.0,2432.9,0.8216]
[1750778248469,4.02941,2433.0,2432.7,0.82163]
[1750778248470,0.82168,2432.8,2432.7,0.82163]
[1750778248774,0.82174,2432.6,2432.5,0.82173]
[1750778249578,0.82178,2432.5,2432.4,0.82176]
[1750778249774,0.82178,2432.4,2432.3,3.2078]
[1750778249975,0.82188,2432.1,2432.0,4.0297]
[1750778250279,0.82188,2432.2,2432.1,0.82187]
[1750778250480,2.14714,2432.3,2432.2,0.82185]
[1750778250682,0.82184,2432.3,2432.2,0.82185]
[1750778250981,0.82184,2432.3,2432.1,0.82186]
[1750778251180,0.82184,2432.3,2432.2,0.82185]
[1750778251780,3.2078,2432.4,2432.0,3.2078]
[1750778251975,4.02961,2432.4,2432.2,0.82183]
[1750778252175,4.02961,2432.4,2432.3,0.82182]
[1750778252577,0.82182,2432.3,2432.2,0.82183]
[1750778253176,0.82186,2432.2,2432.1,0.82187]
[1750778254377,0.82184,2432.3,2432.1,0.82187]
[1750778254580,0.82184,2432.3,2432.2,0.82185]
[1750778254777,0.82186,2432.2,2432.1,0.82186]
[1750778254984,0.82184,2432.3,2432.2,0.82184]
[1750778255170,0.82186,2432.2,2432.0,4.5325]
[1750778255375,0.82186,2432.2,2432.1,0.82186]
[1750778255576,0.82184,2432.3,2432.2,0.82184]
[1750778256082,0.82181,2432.4,2432.3,0.82181]
[1750778256584,0.82188,2432.2,2432.1,0.82188]
[1750778256883,0.82188,2432.1,2432.0,5.35439]
[1750778257081,0.82188,2432.2,2432.0,5.35439]
[1750778257283,0.82188,2432.2,2432.1,0.82188]
[1750778257886,0.82188,2432.1,2432.0,5.35439]
[1750778258688,0.82188,2432.1,2432.0,3.2078]
[1750778259988,0.82205,2431.6,2431.4,3.2703607]
[1750778260185,0.82205,2431.6,2431.3,3.2078]
[1750778260186,0.82212,2431.4,2431.3,3.2078]
[1750778260484,2.05496,2431.9,2431.4,0.82211]
[1750778260485,0.82212,2431.5,2431.4,0.82211]
[1750778260680,0.82212,2431.5,2431.4,2.25051]
[1750778262792,0.82212,2431.5,2431.4,1.4284]
[1750778262989,0.82212,2431.4,2431.3,4.02993]
[1750778263488,0.82211,2431.5,2431.4,0.82211]
[1750778263687,0.82212,2431.4,2431.3,4.02993]
[1750778263889,0.82212,2431.4,2431.3,3.2078]
[1750778264087,0.82222,2431.1,2431.0,3.2078]
[1750778264593,6.61235363,2431.1,2431.0,3.2078]
[1750778267191,0.82222,2431.1,2431.0,3.2078]
[1750778267790,0.82222,2431.1,2431.0,4.03006]
[1750778268191,0.82222,2431.1,2431.0,3.2078]
[1750778269894,0.82232,2430.9,2430.8,0.82231]
[1750778270097,0.82232,2430.9,2430.8,2.13701]
[1750778270295,0.82232,2430.9,2430.8,1.3147]
[1750778270596,0.82228,2431.0,2430.9,0.82228]
[1750778271594,2.05549,2431.2,2430.8,2.137]
[1750778271595,0.82229,2430.9,2430.8,2.137]
[1750778271804,0.82229,2430.9,2430.8,1.3147]
[1750778272098,0.82236,2430.7,2430.6,1.358]
[1750778272581,0.82243,2430.6,2430.4,4.5225]
[1750778272896,0.82243,2430.6,2430.5,0.82241]
[1750778273091,0.82243,2430.6,2430.5,2.14561]
[1750778273297,0.82243,2430.6,2430.5,1.3232]
[1750778274092,0.82243,2430.6,2430.5,2.14563]
[1750778274595,0.82239,2430.6,2430.5,2.14561]
[1750778274997,0.82239,2430.6,2430.5,1.3232]
[1750778275294,0.82243,2430.5,2430.4,3.2078]
[1750778276396,0.82249,2430.3,2430.2,0.82252]
[1750778277499,8.04146,2430.5,2430.4,0.82246]
[1750778277692,0.82247,2430.4,2430.3,0.82247]